fUSD/lending_fUSD_20240506
["ID","MTS","AMOUNT","RATE_DAILY","PERIOD"]
[326500140,1715019041608,-484.0,0.000229,5]
[326500141,1715019041620,-10000.0,0.000229,2]
[326500142,1715019041634,-1182.63984216,0.000229,2]
[326500143,1715019041647,-318.25622712,0.000229,2]
[326500144,1715019041658,-174.05055866,0.000229,4]
[326500145,1715019041668,-203.03478331,0.000229,2]
[326500146,1715019041678,-820.73503242,0.000229,2]
[326500147,1715019041688,-449.0,0.0002297,15]
[326500148,1715019041698,-171.0,0.0002297,15]
[326500149,1715019041709,-449.0,0.0002298,15]
[326500150,1715019041719,-171.0,0.0002298,15]
[326500151,1715019041729,-153.16,0.00022986,2]
[326500152,1715019041739,-150.5,0.0002299,15]
[326500153,1715019041749,-449.0,0.0002299,15]
[326500154,1715019041759,-171.0,0.0002299,15]
[326500155,1715019041770,-2601.18658437,0.00022994,2]
[326500156,1715019041780,-56.72681412,0.00022994,2]
[326500158,1715019041792,-232.13768395,0.00022994,2]
[326500160,1715019041802,-84.31231605,0.00022995,2]
[326500161,1715019041814,-123.31175704,0.00022995,2]
[326500162,1715019041824,-2958.28824293,0.00022995,2]
[326500165,1715019047006,-353.50613739,0.00017944,2]
[326500167,1715019047016,-408.29846214,0.00022896,2]
[326500211,1715020238045,-483.38441344,0.00017154,7]
[326500248,1715020247676,-4481.79293598,0.00017154,7]
[326500249,1715020247688,-3245.01667912,0.00017154,7]
[326500252,1715020247997,-983.06281251,0.00017154,7]
[326500253,1715020248008,-8087.1235282,0.00017157,2]
[326500265,1715020248320,-7985.5005,0.00017157,2]
[326500267,1715020248332,-1978.40158812,0.00017157,2]
[326500269,1715020248808,-274.00697894,0.00017157,2]
[326500270,1715020248818,-5013.88487616,0.00017259,2]
[326500271,1715020248832,-155.35244179,0.00018909,2]
[326500272,1715020248843,-197.89,0.00019178,2]
[326500273,1715020248853,-160.04,0.00019178,2]
[326500274,1715020248864,-926.0,0.000195,2]
[326500275,1715020248875,-499.99,0.000195,2]
[326500276,1715020248885,-179.6678895,0.00019522,2]
[326500277,1715020248895,-2601.18658437,0.0002,2]
[326500278,1715020248906,-608.997,0.00020174,2]
[326500279,1715020248916,-157.3147283,0.00020279,2]
[326500280,1715020248926,-200.02487797,0.000205,2]
[326500281,1715020248936,-150.0,0.00020563,2]
[326500282,1715020248946,-202.39861603,0.00020695,2]
[326500283,1715020248956,-484.29,0.00020731,2]
[326500284,1715020248966,-158.25,0.00020834,2]
[326500285,1715020248976,-290.65,0.00020874,2]
[326500286,1715020248986,-155.0,0.000209,2]
[326500287,1715020248996,-331.91,0.00020925,2]
[326500288,1715020249005,-156.38714029,0.00021745,2]
[326500289,1715020249015,-4989.1796539,0.000219,2]
[326500290,1715020249024,-883.0,0.000219,2]
[326500291,1715020249034,-2000.0,0.00021918,2]
[326500292,1715020249044,-250.0,0.00021918,2]
[326500293,1715020249053,-250.0,0.00021918,2]
[326500294,1715020249063,-786.0242669,0.00022,2]
[326500295,1715020249073,-414.63,0.00022038,2]
[326500296,1715020249083,-414.63,0.00022038,2]
[326500297,1715020249092,-413.87,0.00022038,2]
[326500298,1715020249103,-3404.51906111,0.00022494,2]
[326500299,1715020249113,-554.0,0.0002256,2]
[326500300,1715020249124,-200.0,0.00022811,2]
[326500301,1715020249134,-1000.0,0.00022811,2]
[326500302,1715020249143,-500.0,0.00022811,2]
[326500303,1715020249162,-200.0,0.00022811,2]
[326500304,1715020249184,-200.0,0.00022812,2]
[326500305,1715020249193,-200.0,0.00022812,2]
[326500306,1715020249204,-200.0,0.00022812,2]
[326500307,1715020249213,-1000.0,0.00022812,2]
[326500308,1715020249223,-1000.0,0.00022812,2]
[326500309,1715020249233,-200.0,0.00022812,2]
[326500310,1715020249242,-500.0,0.00022812,2]
[326500311,1715020249252,-500.0,0.00022812,2]
[326500312,1715020249261,-200.0,0.00022812,2]
[326500313,1715020249270,-5508.32410198,0.0002285,7]
[326500314,1715020249280,-645.7099149,0.00022896,2]
[326500315,1715020249289,-1413.74843871,0.00022896,2]
[326500316,1715020249299,-309.39226499,0.00022896,2]
[326500317,1715020249308,-484.0,0.000229,5]
[326500318,1715020249318,-1317.45499553,0.000229,2]
[326500319,1715020249330,-479.23585153,0.000229,2]
[326500320,1715020249341,-586.27968751,0.000229,2]
[326500321,1715020249352,-1517.50982453,0.000229,2]
[326500322,1715020249364,-504.21309168,0.000229,2]
[326500323,1715020249376,-288.63273014,0.000229,2]
[326500324,1715020249387,-714.70719103,0.000229,2]
[326500325,1715020249396,-458.66318124,0.000229,2]
[326500326,1715020249405,-203.03478331,0.000229,2]
[326500327,1715020249414,-150.5,0.0002297,15]
[326500328,1715020249424,-150.5,0.0002297,15]
[326500330,1715020249433,-150.5,0.0002297,15]
[326500332,1715020249443,-314.0,0.0002297,15]
[326500334,1715020249452,-150.5,0.0002298,15]
[326500336,1715020249461,-150.5,0.0002298,15]
[326500339,1715020249470,-150.5,0.0002298,15]
[326500342,1715020249480,-286.54810926,0.0002298,15]
[326500357,1715020249574,-27.45189074,0.0002298,15]
[326500359,1715020249584,-185.03,0.00022986,2]
[326500361,1715020249594,-185.03,0.00022986,2]
[326500363,1715020249603,-185.03,0.00022986,2]
[326500365,1715020249614,-150.5,0.0002299,15]
[326500367,1715020249623,-150.5,0.0002299,15]
[326500369,1715020249633,-150.5,0.0002299,15]
[326500370,1715020249643,-314.0,0.0002299,15]
[326500371,1715020249652,-187.95810924,0.00022994,7]
[326500372,1715020249664,-478.33238274,0.00022994,7]
[326500373,1715020249673,-1682.83052645,0.00022994,2]
[326500374,1715020249682,-120.89609881,0.00022995,2]
[326500375,1715020249693,-2155.45830696,0.00022995,2]
[326500376,1715020249703,-23369.934594,0.00022995,5]
[326500377,1715020249712,-3000.0,0.00022995,2]
[326500378,1715020249721,-457976.77934816,0.00022996,2]
[326501364,1715020428568,940494.65450732,0.00013,2]
[326501371,1715020812802,1061.73088118,0.0001251,2]
[326501373,1715020830013,-1270.56596455,0.00017255,2]
[326501374,1715020830044,-1929.43403545,0.00017256,2]
[326501401,1715021435054,-1270.56596455,0.00017249,2]
[326501403,1715021435064,-3665.75195584,0.0001725,2]
[326501406,1715021435076,-601.41403316,0.0001725,2]
[326501408,1715021435087,-499.2998041,0.0001725,2]
[326501410,1715021435100,-1790.72495,0.0001725,2]
[326501412,1715021435111,-317.265,0.0001725,2]
[326501528,1715021438181,-393.26039802,0.0001725,2]
[326501531,1715021438193,-237.55269434,0.0001725,2]
[326501533,1715021438209,-801.0,0.00017251,2]
[326501535,1715021438219,-45.626885,0.00017256,2]
[326501537,1715021438230,-104.373115,0.00017256,2]
[326501539,1715021438242,-150.0,0.00017256,2]
[326501540,1715021438251,-300.0,0.00017256,2]
[326501541,1715021438261,-572.27447341,0.00017257,7]
[326501542,1715021438271,-162.25,0.00019178,2]
[326501543,1715021438283,-152.12902795,0.00019351,2]
[326501544,1715021438293,-158.32075683,0.00019357,2]
[326501545,1715021438302,-183.1629934,0.0001999,2]
[326501546,1715021438312,-155.0,0.000209,2]
[326501547,1715021438321,-155.0,0.00021315,2]
[326501548,1715021438331,-150.0,0.00021316,2]
[326501549,1715021438341,-387.43,0.00021349,2]
[326501550,1715021438354,-276.59,0.00021355,2]
[326501551,1715021438364,-158.25,0.00021372,2]
[326501552,1715021438375,-154.17335256,0.0002157,2]
[326501553,1715021438384,-353.68,0.0002182,2]
[326501554,1715021438394,-884.35775827,0.000219,2]
[326501555,1715021438448,-250.0,0.00021918,2]
[326501556,1715021438459,-250.0,0.00021918,2]
[326501557,1715021438468,-786.0242669,0.00022,2]
[326501558,1715021438478,-600.0,0.00022464,2]
[326501559,1715021438488,-2607.35455247,0.00022499,7]
[326501560,1715021438497,-500.0,0.000225,8]
[326501561,1715021438507,-1000.0,0.000226,8]
[326501562,1715021438519,-1600.0,0.000227,8]
[326501563,1715021438528,-500.0,0.00022738,2]
[326501564,1715021438539,-158.24537954,0.00022763,2]
[326501565,1715021438549,-2100.0,0.000228,8]
[326501566,1715021438559,-200.0,0.00022811,2]
[326501567,1715021438568,-1000.0,0.00022811,2]
[326501568,1715021438578,-500.0,0.00022811,2]
[326501569,1715021438587,-1000.0,0.00022811,2]
[326501570,1715021438597,-1000.0,0.00022812,2]
[326501571,1715021438607,-200.0,0.00022812,2]
[326501572,1715021438617,-1000.0,0.00022812,2]
[326501573,1715021438626,-1000.0,0.00022812,2]
[326501574,1715021438636,-1000.0,0.00022812,2]
[326501575,1715021438646,-1000.0,0.00022812,2]
[326501576,1715021438656,-200.0,0.00022812,2]
[326501577,1715021438676,-500.0,0.00022812,2]
[326501578,1715021438686,-1272.37359492,0.00022896,2]
[326501579,1715021438696,-817.26919582,0.00022896,2]
[326501580,1715021438706,-484.0,0.000229,5]
[326501581,1715021438716,-158.24537954,0.000229,2]
[326501582,1715021438726,-10000.000001,0.000229,2]
[326501583,1715021438735,-4957.36392426,0.000229,2]
[326501584,1715021438745,-547.15668828,0.000229,2]
[326501585,1715021438755,-2700.0,0.000229,8]
[326501586,1715021438765,-150.5,0.0002297,15]
[326501587,1715021438775,-220.0,0.0002297,15]
[326501588,1715021438788,-150.5,0.0002298,15]
[326501589,1715021438799,-220.0,0.0002298,15]
[326501590,1715021438812,-150.5,0.0002299,15]
[326501591,1715021438822,-220.0,0.0002299,15]
[326501592,1715021438832,-167.0,0.0002299,13]
[326501593,1715021438842,-319.61112207,0.00022994,2]
[326501594,1715021438852,-17508.86441778,0.00022995,5]
[326501596,1715021439251,-2934.80447664,0.00017249,2]
[326501598,1715021439263,-1856.5631075,0.00017249,2]
[326501600,1715021439278,-14245.84220364,0.00017249,2]
[326501602,1715021439291,-429.29344456,0.00017249,2]
[326501603,1715021439301,-698.52417549,0.00022995,5]
[326501624,1715021446798,-74.3025,0.00022995,5]
[326501625,1715021446811,-5088.24350073,0.00022995,5]
[326501626,1715021446821,-26807.63287107,0.00022996,2]
[326501627,1715021446834,-95552.26455793,0.00022996,2]
[326501628,1715021446844,-31210.34534836,0.00022996,2]
[326501629,1715021446855,-469.6114,0.00022996,2]
[326501630,1715021446867,-466.5007902,0.00022996,2]
[326501632,1715021446879,-1591.25203475,0.00022996,2]
[326501634,1715022003076,150.0,0.00012897,2]
[326501635,1715022068348,304009.86148431,0.00012897,2]
[326501636,1715022068868,5313.98437719,0.00012897,2]
[326501637,1715022103684,423.22096672,0.00011607,2]
[326501638,1715022116348,5912.89428964,0.00012897,2]
[326501639,1715022121175,423.22096672,0.00011607,2]
[326501640,1715022137194,423.22096672,0.00011607,2]
[326501641,1715022160929,514.01025632,0.00011607,2]
[326501642,1715022174891,400.47180465,0.00012897,2]
[326501643,1715022182449,14797.78031874,0.00012897,2]
[326501644,1715022194653,363.2489208,0.00012897,2]
[326501645,1715022207193,399.76759804,0.00011607,2]
[326501646,1715022224461,249.2113902,0.00011607,2]
[326501649,1715022304949,282.94,0.00025002,120]
[326501668,1715022633046,-431.8952,0.00015012,2]
[326501670,1715022633059,-2738.5643763,0.00015012,2]
[326501672,1715022633069,-4677.92560691,0.00015012,2]
[326501674,1715022633080,-588.18797534,0.00015012,2]
[326501676,1715022633090,-1026.09722611,0.00015013,2]
[326501678,1715022633102,-244.46873844,0.00015013,2]
[326501680,1715022633112,-405.31529438,0.00015013,2]
[326501682,1715022633121,-651.24932317,0.00018397,2]
[326501683,1715022633131,-158.32075683,0.00018932,2]
[326501685,1715022633141,-187.99,0.00019178,2]
[326501687,1715022633152,-3883.0,0.000194,2]
[326501689,1715022633162,-158.32075683,0.00019606,2]
[326501691,1715022633171,-230.49,0.00019789,2]
[326501693,1715022633181,-184.66,0.00019825,2]
[326501695,1715022633190,-779.77,0.00019831,2]
[326501696,1715022633200,-5987.74013031,0.00019968,2]
[326501698,1715022633212,-3730.0,0.00019968,2]
[326501700,1715022633223,-1624.90255665,0.00019968,2]
[326501838,1715022645200,-633.84,0.00014913,2]
[326501842,1715022645213,-284.51111494,0.00014913,2]
[326501844,1715022645224,-3502.21731077,0.00014913,2]
[326501870,1715022646217,-1340.35926147,0.00014913,2]
[326501874,1715022646226,-4256.76478866,0.00015012,2]
[326501878,1715022646238,-3248.5040468,0.00015012,2]
[326501881,1715022646247,-8850.49608688,0.00019968,2]
[326501884,1715022646257,-700.42578069,0.00019968,2]
[326501885,1715022646270,-460.29830001,0.00019968,2]
[326501886,1715022646282,-271.46970264,0.00019968,2]
[326501887,1715022646293,-2254.66744282,0.00019968,2]
[326501888,1715022646303,-1500.0,0.00019972,2]
[326501889,1715022646312,-250.0,0.00019972,2]
[326501890,1715022646323,-1983.53,0.00019983,2]
[326501891,1715022646332,-187.13,0.00019995,2]
[326501892,1715022646342,-150.0,0.00019999,2]
[326501893,1715022646351,-282.94,0.00020001,2]
[326501894,1715022646361,-5277.9,0.00020045,2]
[326501895,1715022646370,-5951.19,0.00020061,2]
[326501896,1715022646380,-588.12,0.00020061,2]
[326501897,1715022646390,-520.96,0.00020118,2]
[326501898,1715022646401,-159.16,0.00020151,2]
[326501899,1715022646410,-200.0,0.0002018,2]
[326501900,1715022646419,-3080.5,0.00020231,2]
[326501901,1715022646429,-166.15,0.00020288,2]
[326501902,1715022646438,-164.22,0.00020377,2]
[326501903,1715022646447,-164.22,0.00020411,2]
[326501904,1715022646456,-164.22,0.00020445,2]
[326501905,1715022646465,-164.22,0.00020479,2]
[326501906,1715022646474,-176.19,0.00020614,2]
[326501907,1715022646483,-155.0,0.00020697,2]
[326501908,1715022646492,-173.68,0.00020698,2]
[326501909,1715022646502,-155.0,0.000209,2]
[326501910,1715022646511,-159.16,0.00021201,2]
[326501911,1715022646521,-1017.30530834,0.00021749,2]
[326501912,1715022646531,-1527.20049393,0.00021844,7]
[326501913,1715022646540,-250.0,0.00021918,2]
[326501914,1715022646549,-250.0,0.00021918,2]
[326501915,1715022646560,-659.7002167,0.00022,3]
[326501916,1715022646573,-786.0242669,0.00022,2]
[326501917,1715022646581,-282.94,0.00022502,2]
[326501918,1715022646591,-520.96,0.00022633,2]
[326501919,1715022646599,-500.0,0.00022738,2]
[326501920,1715022646609,-5277.9,0.00022785,2]
[326501921,1715022646618,-367.5114,0.00022796,2]
[326501922,1715022646628,-13625.89676576,0.00022796,2]
[326501923,1715022646640,-734.00380414,0.00022796,2]
[326501924,1715022646652,-6200.7938301,0.00022796,2]
[326501925,1715022646662,-500.0,0.00022796,2]
[326501926,1715022646671,-681.8479,0.00022796,2]
[326501927,1715022646681,-1000.0,0.00022796,2]
[326501928,1715022646690,-2500.0,0.00022796,2]
[326501931,1715022646699,-92.92213723,0.000228,2]
[326501934,1715022646711,-488.21678618,0.000228,2]
[326501935,1715022646721,-715.11054629,0.000228,2]
[326501937,1715022646730,-119.92402221,0.000228,2]
[326501940,1715022646743,-670.92305894,0.000228,2]
[326501942,1715022646755,-354.28915426,0.000228,2]
[326501944,1715022646765,-200.0,0.00022812,2]
[326501945,1715022646774,-152.12710559,0.00022812,2]
[326501946,1715022646787,-254.85080167,0.00022812,2]
[326501947,1715022646798,-302.465,0.00022812,2]
[326501948,1715022646810,-290.55709274,0.00022812,2]
[326501949,1715022646821,-34.36234625,0.00022812,2]
[326501950,1715022646941,-165.63765375,0.00022812,2]
[326501951,1715022646950,-500.0,0.00022812,2]
[326501952,1715022646959,-1120.50258917,0.00022873,2]
[326501954,1715022647331,-3468.05784306,0.00022873,2]
[326501956,1715022647340,-2147.39207256,0.00022894,2]
[326501958,1715022647351,-936.88766067,0.00022894,2]
[326501960,1715022647360,-155.0,0.00022894,2]
[326501962,1715022647370,-363.66976603,0.00022894,2]
[326501964,1715022647379,-495.98178989,0.00022894,2]
[326502015,1715022703614,15013.42843875,0.00012,2]
[326502016,1715022724740,150.0,0.00012897,2]
[326502017,1715022726162,150.0,0.00012897,2]
[326502018,1715022733189,155.0,0.00012896,2]
[326502023,1715022998801,457.20210939,0.00012896,2]
[326502036,1715023623695,150.0,0.00012897,2]
[326502043,1715023832947,-642.3977412,0.00016246,2]
[326502049,1715023832958,-281.19172138,0.00016246,7]
[326502053,1715023832971,-291.08275203,0.00016246,7]
[326502057,1715023832981,-405.31529438,0.00016247,2]
[326502061,1715023832993,-574.57881071,0.00016247,2]
[326502064,1715023833008,-637.81953204,0.00016247,2]
[326502065,1715023833017,-5266.11358225,0.00016247,2]
[326502066,1715023833027,-363.77766344,0.00016248,2]
[326502067,1715023833037,-7505.26883546,0.00016248,2]
[326502069,1715023833047,-1270.56596455,0.00016249,2]
[326502070,1715023833057,-289.64405494,0.0001625,2]
[326502073,1715023833069,-198.42993799,0.0001625,2]
[326502074,1715023833079,-2182.84243972,0.0001625,2]
[326502075,1715023833088,-150.99,0.0001705,2]
[326502076,1715023833098,-999.99,0.00017159,2]
[326502077,1715023833109,-341.29,0.00017259,2]
[326502078,1715023833118,-499.99,0.00017259,2]
[326502079,1715023833128,-551.7,0.00017259,2]
[326502080,1715023833137,-690.10548524,0.0001726,2]
[326502081,1715023835555,-761.75219466,0.0001726,2]
[326502084,1715023835569,-8396.0623201,0.0001726,2]
[326502085,1715023835579,-8283.16,0.0001726,2]
[326502087,1715023835591,-624.88,0.0001726,2]
[326502089,1715023835602,-7035.86,0.0001883,2]
[326502091,1715023835612,-192.07,0.00018839,2]
[326502093,1715023835621,-150.0,0.00018903,2]
[326502095,1715023835631,-445.3,0.00018932,2]
[326502097,1715023835641,-1611.52913351,0.00018982,2]
[326502099,1715023835653,-1488.679186,0.00018982,2]
[326502102,1715023835666,-44357.07966274,0.00018982,2]
[326502104,1715023835676,-315.29,0.00019069,2]
[326502106,1715023835686,-250.0,0.00019086,2]
[326502108,1715023835696,-315.29,0.00019122,2]
[326502110,1715023835706,-315.29,0.00019174,2]
[326502112,1715023835716,-160.04,0.00019178,2]
[326502114,1715023835727,-315.29,0.00019226,2]
[326502116,1715023835736,-315.29,0.00019279,2]
[326502118,1715023835746,-315.29,0.00019331,2]
[326502120,1715023835756,-315.29,0.00019383,2]
[326502122,1715023835766,-10000.0,0.00019414,2]
[326502124,1715023835776,-315.29,0.00019435,2]
[326502126,1715023835785,-315.29,0.00019488,2]
[326502128,1715023835795,-315.29,0.0001954,2]
[326502130,1715023835804,-315.29,0.00019592,2]
[326502132,1715023835814,-879.0,0.000196,2]
[326502134,1715023835823,-315.29,0.00019645,2]
[326502136,1715023835832,-315.29,0.00019697,2]
[326502138,1715023835842,-315.29,0.00019749,2]
[326502139,1715023835852,-315.29,0.00019802,2]
[326502141,1715023835861,-315.29,0.00019854,2]
[326502143,1715023835871,-315.29,0.00019906,2]
[326502145,1715023835881,-315.29,0.00019958,2]
[326502147,1715023835891,-315.29,0.00020011,2]
[326502149,1715023835902,-315.29,0.00020063,2]
[326502150,1715023835916,-163.0,0.00020156,2]
[326502151,1715023835926,-889.2,0.0002021,2]
[326502153,1715023835937,-155.0,0.000205,2]
[326502155,1715023835947,-6060.16,0.00020546,2]
[326502157,1715023835957,-181.9451404,0.00020605,2]
[326502158,1715023835966,-1147.00371487,0.00020609,2]
[326502160,1715023835976,-1212.8273019,0.00020609,2]
[326502162,1715023835987,-742.47447029,0.00020609,2]
[326502164,1715023835996,-309.39226499,0.00020609,2]
[326502166,1715023836006,-1055.95,0.00020633,2]
[326502168,1715023836017,-1055.95,0.00020638,2]
[326502170,1715023836035,-1055.95,0.00020644,2]
[326502172,1715023836047,-1055.95,0.00020649,2]
[326502174,1715023836059,-1055.95,0.00020655,2]
[326502177,1715023836100,-1055.95,0.0002066,2]
[326502179,1715023836134,-1055.95,0.00020665,2]
[326502181,1715023836146,-1055.95,0.00020671,2]
[326502183,1715023836156,-1055.95,0.00020676,2]
[326502185,1715023836168,-1055.95,0.00020682,2]
[326502187,1715023836179,-2169.6693,0.00020685,2]
[326502189,1715023836189,-1055.95,0.00020687,2]
[326502191,1715023836199,-1055.95,0.00020693,2]
[326502193,1715023836209,-1055.95,0.00020698,2]
[326502195,1715023836218,-1055.95,0.00020703,2]
[326502197,1715023836228,-2491.32152706,0.00020707,2]
[326502199,1715023836238,-539.72354301,0.00020707,2]
[326502201,1715023836248,-155.0,0.00020707,2]
[326502203,1715023836259,-527.68736117,0.00020707,2]
[326502205,1715023836270,-524.56491145,0.00020707,2]
[326502207,1715023836280,-202.59134219,0.00020707,2]
[326502209,1715023836290,-155.0,0.00020708,2]
[326502211,1715023836300,-130693.45223783,0.00020709,2]
[326502213,1715023836313,-1033.7,0.00020709,2]
[326502216,1715023836325,-2481.26025677,0.00020709,2]
[326502218,1715023836342,-133417.7057725,0.00020709,2]
[326502220,1715023836356,-3990.39052706,0.00020709,2]
[326502222,1715023836368,-9439.675704,0.00020709,2]
[326502224,1715023836380,-919.26358847,0.00020709,2]
[326502227,1715023836392,-39821.52590195,0.00020709,2]
[326502229,1715023836403,-1055.95,0.00020709,2]
[326502231,1715023836413,-1055.95,0.00020714,2]
[326502233,1715023836423,-1055.95,0.0002072,2]
[326502235,1715023836434,-1055.95,0.00020725,2]
[326502237,1715023836444,-1055.95,0.00020731,2]
[326502239,1715023836453,-1055.95,0.00020736,2]
[326502240,1715023836464,-155.0,0.000209,2]
[326502243,1715023836475,-2332.2,0.00020938,2]
[326502244,1715023836485,-1147.00371484,0.00021182,2]
[326502246,1715023836495,-1212.82730189,0.000212,2]
[326502248,1715023836537,-742.47447025,0.00021251,2]
[326502251,1715023836571,-445.3,0.00021298,2]
[326502253,1715023836582,-7035.86,0.0002157,2]
[326502255,1715023836592,-955.02743439,0.00021747,2]
[326502257,1715023836602,-1701.53699142,0.00021749,7]
[326502259,1715023836616,-695.03036828,0.00021749,7]
[326502261,1715023836628,-2777.7159202,0.00021749,7]
[326502263,1715023836640,-4004.94291722,0.00021749,7]
[326502266,1715023836652,-1295.14825201,0.00021749,2]
[326502267,1715023836662,-1147.00371484,0.00021755,2]
[326502270,1715023836672,-1212.82730189,0.00021792,2]
[326502271,1715023836682,-742.47447025,0.00021894,2]
[326502274,1715023836692,-250.0,0.00021918,2]
[326502276,1715023836702,-250.0,0.00021918,2]
[326502277,1715023836712,-912.13,0.00021952,2]
[326502279,1715023836722,-786.0242669,0.00022,2]
[326502281,1715023836732,-1147.00371484,0.00022327,2]
[326502283,1715023836742,-1212.82730189,0.00022383,2]
[326502286,1715023836753,-2620.64741196,0.00022498,8]
[326502288,1715023836764,-1432.63579708,0.00022506,2]
[326502290,1715023836777,-408.75323981,0.00022506,2]
[326502292,1715023836789,-547.43728168,0.00022506,2]
[326502294,1715023836801,-558.15546194,0.00022506,2]
[326502296,1715023836813,-552.69761111,0.00022506,2]
[326502298,1715023836823,-713.90414796,0.00022536,2]
[326502300,1715023836835,-28.57032229,0.00022536,2]
[326502302,1715023836844,-151.0,0.00022549,7]
[326502304,1715023836854,-151.0,0.00022549,7]
[326502306,1715023836867,-170.14322502,0.00022549,7]
[326502308,1715023836886,-119.43870298,0.00022549,7]
[326502310,1715023836896,-151.0,0.00022626,7]
[326502312,1715023836908,-1361.03592768,0.00022632,2]
[326502314,1715023836921,-199.60581616,0.00022632,2]
[326502316,1715023836931,-3921.46571957,0.00022663,2]
[326502319,1715023836944,-11373.03455129,0.00022663,2]
[326502321,1715023836956,-3214.22856985,0.00022663,2]
[326502323,1715023836981,-1673.69726498,0.00022663,2]
[326502325,1715023836991,-155.022074,0.00022663,7]
[326502327,1715023837002,-467.429903,0.00022663,7]
[326502329,1715023837013,-250.14404649,0.00022663,7]
[326502331,1715023837025,-217.28585651,0.00022663,7]
[326502333,1715023837034,-169.73647769,0.0002267,2]
[326502335,1715023837044,-538.69217784,0.000227,2]
[326502337,1715023837056,-461.30782216,0.000227,2]
[326502339,1715023837066,-889.2,0.00022736,2]
[326502341,1715023837077,-500.0,0.00022738,2]
[326502343,1715023837087,-1000.0,0.00022773,2]
[326502345,1715023837097,-200.0,0.00022778,2]
[326502347,1715023837108,-3757.84011474,0.00022792,2]
[326502349,1715023837120,-18689.70909248,0.00022792,2]
[326502351,1715023837133,-5499.44206622,0.00022792,2]
[326502353,1715023837145,-261.15578167,0.00022792,2]
[326502355,1715023837157,-1275.75232492,0.00022792,2]
[326502358,1715023837170,-48254.86852978,0.00022792,2]
[326502360,1715023837182,-903.55095595,0.00022792,2]
[326502362,1715023837193,-518.40021227,0.00022792,2]
[326502364,1715023837204,-564.72049553,0.00022792,2]
[326502366,1715023837216,-850.24097084,0.00022792,2]
[326502369,1715023837228,-6241.32019456,0.00022792,2]
[326502371,1715023837240,-1234.12701109,0.00022792,2]
[326502373,1715023837252,-5724.45398716,0.00022792,2]
[326502375,1715023837266,-30832.3344385,0.00022792,2]
[326502377,1715023837279,-397.56791311,0.00022792,2]
[326502379,1715023837291,-3232.28802882,0.00022792,2]
[326502382,1715023837303,-455.94522447,0.00022792,2]
[326502384,1715023837314,-63010.99999997,0.00022792,2]
[326502386,1715023837326,-5611.57327231,0.00022792,2]
[326502388,1715023837343,-47683.70938561,0.00022792,2]
[326502390,1715023837354,-151.0,0.00022792,7]
[326502393,1715023837366,-151.0,0.00022792,7]
[326502395,1715023837377,-151.0,0.00022792,7]
[326502397,1715023837387,-467.429903,0.00022792,7]
[326502399,1715023837397,-467.429903,0.00022792,7]
[326502401,1715023837407,-10338.6550977,0.000228,2]
[326502403,1715023837418,-500.0,0.00022811,2]
[326502405,1715023837427,-200.0,0.00022811,2]
[326502407,1715023837438,-200.0,0.00022812,2]
[326502409,1715023837447,-1000.0,0.00022812,2]
[326502410,1715023837457,-500.0,0.00022812,2]
[326502412,1715023837467,-200.0,0.00022812,2]
[326502414,1715023837480,-653.0,0.00022862,2]
[326502416,1715023837513,-2528.0928301,0.00022873,2]
[326502418,1715023837524,-1268.0,0.00022891,2]
[326502420,1715023837534,-1000.0,0.00022892,2]
[326502422,1715023837544,-1000.0,0.00022892,2]
[326502424,1715023837554,-1000.0,0.00022892,2]
[326502426,1715023837563,-1000.0,0.00022892,2]
[326502428,1715023837574,-1000.0,0.00022892,2]
[326502430,1715023837583,-1000.0,0.00022892,2]
[326502432,1715023837594,-1000.0,0.00022892,2]